bitfinex/quotes_SOLUSD_20250722
["timestamp","ask_amount","ask_price","bid_price","bid_amount"]
[1753214982833,0.72,199.82,199.77,49.18]
[1753214983135,9.14010986,199.82,199.77,49.18]
[1753214983329,0.14216157,199.81,199.77,23.18]
[1753214983533,5.005005,199.8,199.77,23.18]
[1753214985247,0.14216157,199.81,199.77,23.18]
[1753214985446,5.14686098,199.82,199.78,0.65]
[1753214985648,13.56697084,199.82,199.77,23.18]
[1753214985839,13.56697084,199.82,199.78,0.65]
[1753214986144,0.06,199.85,199.84,26.0]
[1753214986352,0.06,199.85,199.84,57.58010986]
[1753214986518,0.06,199.85,199.84,58.23010986]
[1753214987819,0.06,199.85,199.84,63.23411306]
[1753214988344,0.06,199.85,199.84,64.75581306]
[1753214988546,0.06,199.85,199.84,87.93939703]
[1753214991246,1e-08,199.85,199.84,103.1115586]
[1753214991465,0.06,199.9,199.88,26.0]
[1753214991755,0.06,199.9,199.89,31.58010986]
[1753214992369,0.06,199.9,199.89,23.16]
[1753214992665,0.06,199.9,199.89,32.27010986]
[1753214993254,0.06,199.9,199.89,37.77313652]
[1753214993765,0.06,199.9,199.89,54.55782049]
[1753214994142,0.06,199.9,199.89,37.25286137]
[1753214994467,0.06,199.9,199.89,54.03754534]
[1753214994777,0.06,199.9,199.89,30.89754534]
[1753214994985,0.06,199.9,199.89,54.03754534]
[1753214995960,0.06,199.9,199.89,37.25286137]
[1753214996549,0.06,199.9,199.89,37.75313652]
[1753214999660,0.06,199.9,199.89,54.53782049]
[1753215000566,0.06,199.91,199.9,21.78718522]
[1753215000766,0.06,199.91,199.9,60.92729508]
[1753215001065,0.06,199.91,199.9,30.89729508]
[1753215001242,0.06,199.91,199.9,32.97672388]
[1753215001767,0.06,199.91,199.9,10.94227058]
[1753215001945,0.06,199.91,199.9,34.06227058]
[1753215002142,0.06,199.91,199.9,0.69]
[1753215002348,0.06,199.91,199.9,34.06227058]
[1753215002551,0.06,199.91,199.9,45.59718522]
[1753215002765,0.06,199.91,199.9,34.06227058]
[1753215003349,0.06,199.91,199.9,39.31203991]
[1753215003549,0.06,199.91,199.9,28.81250125]
[1753215003774,0.06,199.91,199.9,39.31203991]
[1753215004381,0.06,199.91,199.9,5.93976933]
[1753215004548,0.06,199.91,199.89,5.24976933]
[1753215004874,0.06,199.91,199.87,0.69]
[1753215004875,0.76,199.91,199.9,23.12]
[1753215005189,0.76,199.91,199.85,5.24976933]
[1753215005190,0.7,199.9,199.85,5.24976933]
[1753215005472,0.7,199.89,199.85,5.24976933]
[1753215005675,10.25277113,199.88,199.86,23.12]
[1753215005871,0.7,199.87,199.86,23.12]
[1753215006761,5.94976933,199.87,199.86,23.12]
[1753215007157,9.2538148,199.87,199.74,29.06604984]
[1753215007384,8.41165323,199.82,199.75,0.69]
[1753215007683,0.7,199.81,199.76,31.53165323]
[1753215007975,0.7,199.81,199.76,8.41165323]
[1753215008278,13.41633637,199.82,199.76,8.41165323]
[1753215008279,0.7,199.8,199.78,26.0]
[1753215009280,5.14644314,199.83,199.78,26.0]
[1753215009451,0.14216157,199.81,199.77,23.12]
[1753215009761,0.7,199.8,199.77,31.53165323]
[1753215009961,0.14216157,199.81,199.77,31.53165323]
[1753215010377,0.84216157,199.81,199.77,31.53165323]
[1753215010680,0.84216157,199.81,199.78,23.1]
[1753215010877,0.84216157,199.81,199.77,8.41165323]
[1753215011065,0.84216157,199.81,199.78,23.1]
[1753215011385,0.06,199.91,199.8,8.41165323]
[1753215011683,5.00250125,199.9,199.85,8.41165323]
[1753215011984,5.00250125,199.9,199.81,23.79]
[1753215011985,0.06,199.91,199.86,0.69]
[1753215012150,0.7,199.9,199.87,23.1]
[1753215012572,0.06,199.91,199.87,23.1]
[1753215012774,0.06,199.91,199.86,8.41165323]
[1753215012775,0.20216157,199.91,199.86,8.41165323]
[1753215012948,0.90216157,199.91,199.87,23.1]
[1753215013152,0.7,199.9,199.86,31.51165323]
[1753215013379,0.06,199.91,199.86,23.1]
[1753215013584,0.06,199.91,199.88,8.41165323]
[1753215013792,0.06,199.91,199.89,8.41165323]
[1753215015272,0.06,199.91,199.9,32.20165323]
[1753215015857,0.06,199.91,199.9,58.20165323]
[1753215016372,0.06,199.91,199.9,35.10165323]
[1753215016760,0.06,199.91,199.9,58.20165323]
[1753215017088,0.06,199.91,199.9,63.20415448]
[1753215017455,0.06,199.91,199.9,40.10415448]
[1753215017672,0.06,199.91,199.9,37.20415448]
[1753215017870,0.06,199.91,199.9,37.7044046]
[1753215018254,0.06,199.91,199.9,37.20415448]
[1753215018456,0.06,199.91,199.9,36.51415448]
[1753215018687,0.06,199.91,199.9,37.19415448]
[1753215019771,0.06,199.91,199.9,40.09415448]
[1753215019984,0.06,199.91,199.9,37.19415448]
[1753215020198,0.06,199.91,199.9,26.0]
[1753215020496,0.06,199.91,199.9,58.17165323]
[1753215022267,0.06,199.91,199.9,63.17415448]
[1753215022677,0.06,199.91,199.9,53.95883845]
[1753215024595,0.06,199.91,199.9,31.49165323]
[1753215025691,0.06,199.91,199.9,36.49415448]
[1753215025865,0.06,199.91,199.9,13.41415448]
[1753215026065,0.06,199.91,199.9,36.49415448]
[1753215026564,0.06,199.91,199.9,36.47415448]
[1753215026764,0.06,199.91,199.9,37.15415448]
[1753215027667,0.06,199.91,199.9,36.47415448]
[1753215027871,0.06,199.91,199.9,37.15415448]
[1753215028799,0.06,199.91,199.87,0.53032521]
[1753215028800,0.06,199.91,199.87,0.03]
[1753215029008,0.06,199.91,199.9,8.41165323]
[1753215030072,0.06,199.91,199.9,14.09415448]
[1753215032392,0.06,199.91,199.9,13.41415448]
[1753215032595,0.06,199.91,199.9,23.06]
[1753215032776,0.06,199.91,199.9,57.47165323]
[1753215033297,0.06,199.91,199.9,54.3130085]
[1753215033992,0.71,199.91,199.89,5.2530085]
[1753215034190,0.71,199.91,199.9,49.06]
[1753215034392,0.71,199.91,199.9,49.04]
[1753215035284,14.11895236,199.91,199.87,0.03]
[1753215035490,0.71,199.91,199.88,23.04]
[1753215036098,0.65,199.9,199.88,23.04]
[1753215037808,0.20216157,199.91,199.88,23.04]
[1753215038108,0.65,199.89,199.87,23.07]
[1753215038696,8.54870437,199.88,199.87,0.03]
[1753215039007,0.14216157,199.88,199.87,0.03]
[1753215039379,9.19870437,199.88,199.87,0.03]
[1753215039796,14.20170617,199.88,199.87,0.03]
[1753215041600,5.79516337,199.88,199.87,0.03]
[1753215041810,14.20170617,199.88,199.87,0.03]
[1753215044191,30.98639014,199.88,199.87,0.03]
[1753215045305,22.57984734,199.88,199.87,0.03]
[1753215045511,30.98639014,199.88,199.87,0.03]
[1753215048200,22.57984734,199.88,199.87,0.03]
[1753215048392,21.92984734,199.88,199.87,0.03]
[1753215048790,5.14516337,199.88,199.87,0.03]
[1753215049110,31.03639014,199.88,199.87,0.03]
[1753215050487,22.62984734,199.88,199.87,0.03]
[1753215050795,31.03639014,199.88,199.87,0.03]
[1753215052804,30.33639014,199.88,199.87,0.03]
[1753215053012,12.56562753,199.91,199.87,0.03]
[1753215053013,0.06,199.91,199.87,9.1365428]
[1753215053186,0.06,199.91,199.9,8.4065428]
[1753215053389,0.06,199.91,199.88,8.4065428]
[1753215053593,8.4665428,199.91,199.87,0.03]
[1753215053795,0.7,199.9,199.87,0.03]
[1753215054096,0.14216157,199.9,199.87,0.03]
[1753215054292,0.76,199.91,199.87,0.73]
[1753215054293,0.06,199.91,199.87,0.73]
[1753215054621,0.20216157,199.91,199.87,0.73]
[1753215055417,0.20216157,199.91,199.87,5.984547]
[1753215056016,5.2044273,199.91,199.87,5.984547]
[1753215056518,11.1589743,199.91,199.87,0.03]
[1753215056719,5.9044273,199.91,199.87,0.03]
[1753215057088,5.9044273,199.91,199.88,0.7]
[1753215057089,0.20216157,199.91,199.88,0.7]
[1753215057306,10.45901519,199.91,199.87,0.03]
[1753215057505,0.7,199.9,199.87,0.03]
[1753215057813,0.20216157,199.91,199.88,5.954547]
[1753215058017,0.20216157,199.91,199.89,0.7]
[1753215059091,0.06,199.91,199.87,5.984547]
[1753215059315,0.06,199.91,199.88,0.7]
[1753215059814,0.06,199.91,199.87,0.03]
[1753215060523,5.314547,199.91,199.87,0.03]
[1753215060705,6.014547,199.91,199.87,0.03]
[1753215060896,0.06,199.91,199.88,0.7]
[1753215061221,0.06,199.91,199.89,0.7]
[1753215063618,0.06,199.91,199.87,0.73]
[1753215064640,0.76,199.91,199.87,0.73]
[1753215065201,5.254547,199.88,199.87,0.03]
[1753215065709,5.954547,199.88,199.87,0.03]
[1753215066413,16.92684554,199.89,199.87,0.03]
[1753215066613,5.954547,199.88,199.87,0.03]
[1753215067241,10.9575488,199.88,199.87,0.03]
[1753215067735,27.88439434,199.88,199.87,0.03]
[1753215070223,22.62984734,199.88,199.87,0.03]
[1753215070530,27.88439434,199.88,199.87,0.03]
[1753215071829,22.62984734,199.88,199.87,0.03]
[1753215072031,27.88439434,199.88,199.87,0.03]
[1753215077325,27.18439434,199.88,199.87,0.03]
[1753215077911,27.90439434,199.88,199.87,0.03]
[1753215080442,27.18439434,199.88,199.87,0.03]
[1753215080664,27.90439434,199.88,199.87,0.03]
[1753215082414,5.06236272,199.91,199.87,5.944547]
[1753215082609,5.06236272,199.91,199.87,0.03]
[1753215082610,22.75923097,199.9,199.87,0.03]
[1753215082837,0.14216157,199.89,199.87,0.03]
[1753215083138,0.14216157,199.89,199.87,5.944547]
[1753215083544,0.14216157,199.89,199.87,0.69]
[1753215083748,5.14504138,199.89,199.87,0.03]
[1753215083919,0.14216157,199.89,199.87,0.03]
[1753215084119,5.86493794,199.89,199.87,0.03]
[1753215085147,5.14493794,199.89,199.87,0.03]
[1753215085722,0.86216157,199.88,199.87,0.03]
[1753215086139,0.14216157,199.88,199.87,0.69]
[1753215086738,0.14216157,199.88,199.87,0.03]
[1753215088855,27.90439434,199.88,199.87,0.03]
[1753215089064,17.64684554,199.88,199.87,0.03]
[1753215089238,5.14516337,199.88,199.87,0.03]
[1753215090450,21.92984734,199.88,199.87,0.03]
[1753215091040,16.92684554,199.88,199.87,0.69]
[1753215091245,0.14216157,199.88,199.87,0.69]
[1753215091546,17.56468397,199.91,199.87,0.03]
[1753215091745,0.14216157,199.89,199.87,0.03]
[1753215092150,0.14216157,199.89,199.88,0.66]
[1753215092662,0.14216157,199.89,199.88,5.914547]
[1753215093334,0.14216157,199.89,199.88,0.66]
[1753215093837,0.14216157,199.89,199.87,5.284547]
[1753215094035,0.14216157,199.9,199.87,0.03]
[1753215094449,0.86216157,199.9,199.87,0.03]
[1753215094648,0.14216157,199.88,199.87,0.03]
[1753215095645,6.11670857,199.88,199.87,0.03]
[1753215095850,27.90439434,199.88,199.87,0.03]
[1753215096163,40.41189884,199.88,199.83,0.03]
[1753215096347,22.03923097,199.84,199.83,0.03]
[1753215096666,22.18139254,199.84,199.83,0.03]
[1753215097046,22.90139254,199.84,199.83,0.03]
[1753215097446,27.90539574,199.84,199.83,0.03]
[1753215099367,0.86216157,199.84,199.83,0.03]
[1753215099557,11.12071177,199.84,199.83,0.03]
[1753215099947,5.14616477,199.84,199.83,0.03]
[1753215100144,0.14216157,199.84,199.83,0.69]
[1753215100449,5.00327318,199.87,199.83,0.69]
[1753215100773,5.254547,199.87,199.83,0.69]
[1753215101065,6.11670857,199.86,199.83,0.03]
[1753215101870,5.39670857,199.86,199.83,0.03]
[1753215102048,0.14216157,199.86,199.83,0.03]
[1753215102781,0.06,199.9,199.86,5.00350245]
[1753215103072,0.06,199.9,199.87,5.914547]
[1753215103273,0.06,199.9,199.88,5.254547]
[1753215103578,0.06,199.9,199.85,5.254547]
[1753215103875,0.20216157,199.9,199.85,5.914547]
[1753215104046,0.06,199.9,199.89,5.254547]
[1753215104247,0.06,199.9,199.88,26.0]
[1753215104470,0.06,199.9,199.89,0.66]
[1753215104674,0.06,199.9,199.88,31.254547]
[1753215104860,0.06,199.9,199.89,0.66]
[1753215106385,0.06,199.9,199.88,26.0]
[1753215106553,0.06,199.9,199.89,0.66]
[1753215107080,0.06,199.9,199.89,17.11629851]
[1753215107286,0.06,199.9,199.89,12.113547]
[1753215107584,0.06,199.9,199.89,0.66]
[1753215109275,0.06,199.9,199.87,26.0]
[1753215109491,0.06,199.9,199.84,7.3152]
[1753215109492,5.254547,199.88,199.84,7.3152]
[1753215109657,0.14216157,199.86,199.83,0.03]
[1753215109853,0.83216157,199.86,199.83,0.03]
[1753215110055,5.944547,199.85,199.83,0.03]
[1753215110273,0.14216157,199.86,199.83,0.03]
[1753215110475,5.254547,199.85,199.83,0.03]
[1753215110864,0.06,199.9,199.84,0.66]
[1753215111178,5.45670857,199.9,199.84,0.66]
[1753215111477,5.254547,199.88,199.84,0.66]
[1753215111660,0.14216157,199.89,199.84,0.66]
[1753215111981,5.39670857,199.89,199.85,0.66]
[1753215112176,6.08670857,199.89,199.85,0.66]
[1753215113153,11.0896743,199.89,199.85,0.66]
[1753215113555,5.39670857,199.86,199.83,0.03]
[1753215113956,6.08670857,199.86,199.83,0.03]
[1753215114154,0.83216157,199.86,199.83,0.03]
[1753215114380,0.14216157,199.84,199.83,0.03]
[1753215114557,5.39670857,199.84,199.83,0.03]
[1753215114762,6.08670857,199.84,199.83,0.03]
[1753215115076,0.14216157,199.84,199.83,0.69]
[1753215116586,0.14216157,199.85,199.83,0.69]
[1753215116969,0.14216157,199.85,199.83,0.03]
[1753215117679,5.00280099,199.89,199.84,0.66]
[1753215117980,0.14216157,199.86,199.83,0.03]
[1753215118971,0.14216157,199.86,199.84,0.66]
[1753215119251,0.06,199.9,199.85,0.66]
[1753215119456,0.06,199.9,199.86,0.66]
[1753215119657,0.20216157,199.9,199.86,0.66]
[1753215120281,0.20216157,199.9,199.85,5.254547]
[1753215120470,11.14941324,199.9,199.85,0.66]
[1753215120671,0.69,199.89,199.83,0.69]
[1753215120871,0.69,199.89,199.84,5.254547]
[1753215121188,0.14216157,199.84,199.83,0.03]
[1753215123284,10.25805017,199.86,199.83,0.03]
[1753215123285,5.14595392,199.85,199.83,0.03]
[1753215123489,10.40050092,199.85,199.83,0.03]
[1753215124082,5.39670857,199.84,199.83,0.03]
[1753215124490,0.14216157,199.84,199.83,0.03]
[1753215124785,10.40071177,199.84,199.83,0.03]
[1753215125195,11.09071177,199.84,199.83,0.03]
[1753215125365,0.14216157,199.84,199.83,0.69]
[1753215125564,0.14216157,199.84,199.83,0.03]
[1753215126472,5.14616477,199.84,199.83,0.03]
[1753215126889,0.14216157,199.84,199.83,0.03]
[1753215127387,5.14616477,199.84,199.83,0.03]
[1753215128072,5.83616477,199.84,199.83,0.03]
[1753215128260,11.09071177,199.84,199.83,0.03]
[1753215129690,27.87539574,199.84,199.83,0.03]
[1753215130385,22.62084874,199.84,199.83,0.03]
[1753215130578,27.87539574,199.84,199.83,0.03]
[1753215131385,22.62084874,199.84,199.83,0.03]
[1753215131588,27.87539574,199.84,199.83,0.03]
[1753215134191,21.93084874,199.84,199.83,0.03]
[1753215134393,27.18539574,199.84,199.83,0.03]
[1753215134595,28.134547,199.9,199.83,0.69]
[1753215134596,23.57,199.9,199.83,0.69]
[1753215134768,5.254547,199.89,199.83,5.944547]
[1753215134970,0.14216157,199.88,199.84,0.66]
[1753215135194,5.39670857,199.86,199.83,0.03]
[1753215135396,0.14216157,199.84,199.83,0.03]
[1753215135776,5.39670857,199.84,199.83,0.03]
[1753215135973,21.78743548,199.89,199.83,0.03]
[1753215136280,0.06,199.9,199.87,5.254547]
[1753215136596,5.06252941,199.9,199.88,0.66]
[1753215136796,5.39670857,199.89,199.85,0.66]
[1753215137097,0.14216157,199.87,199.85,0.66]
[1753215137401,5.39670857,199.88,199.83,0.74]
[1753215137596,0.14216157,199.86,199.83,0.74]
[1753215137894,0.14216157,199.86,199.84,0.71]
[1753215138297,5.14566422,199.86,199.84,0.71]
[1753215138477,5.14566422,199.86,199.83,0.03]
[1753215138793,5.14566422,199.86,199.83,0.74]
[1753215139294,0.66,199.88,199.84,0.71]
[1753215139295,0.14216157,199.88,199.84,0.71]
[1753215139502,0.14216157,199.88,199.83,5.284547]
[1753215139806,0.14216157,199.88,199.85,0.71]
[1753215140093,5.39670857,199.88,199.85,0.71]
[1753215140493,5.14529888,199.88,199.83,0.03]
[1753215140698,5.14529888,199.88,199.84,0.71]
[1753215140899,5.14529888,199.88,199.85,0.71]
[1753215141199,5.06257197,199.9,199.86,0.71]
[1753215141402,0.06,199.9,199.87,5.964547]
[1753215141607,0.06,199.9,199.88,0.71]
[1753215142178,0.06,199.9,199.89,5.964547]
[1753215142377,0.06,199.9,199.89,36.96729851]
[1753215142896,0.06,199.9,199.89,26.71]
[1753215143100,0.06,199.9,199.89,31.964547]
[1753215143308,0.06,199.9,199.89,36.96729851]
[1753215143494,0.06,199.9,199.89,31.71275151]
[1753215143678,0.06,199.9,199.89,36.96729851]
[1753215144503,0.06,199.9,199.89,55.124547]
[1753215144803,0.06,199.9,199.89,60.12729851]
[1753215146910,0.06,199.9,199.89,54.87275151]
[1753215147276,0.06,199.9,199.89,60.12729851]
[1753215147912,0.06,199.9,199.89,54.87275151]
[1753215148117,0.06,199.9,199.89,55.124547]
[1753215148319,0.06,199.9,199.89,49.87]
[1753215148612,0.06,199.9,199.89,55.124547]
[1753215149209,0.06,199.9,199.89,54.87275151]
[1753215149519,0.06,199.9,199.89,60.12729851]
[1753215150394,0.06,199.9,199.89,62.20747366]
[1753215150916,0.06,199.9,199.89,84.24670463]
[1753215151685,0.06,199.9,199.89,73.73761063]
[1753215151886,0.06,199.9,199.89,84.24670463]
[1753215152082,0.06,199.9,199.89,78.99215763]
[1753215152427,0.06,199.91,199.9,16.78468397]
[1753215152595,0.06,199.91,199.9,28.00377797]
[1753215153696,0.06,199.91,199.9,33.00627922]
[1753215154018,0.06,199.91,199.9,27.75173222]
[1753215154397,0.06,199.91,199.9,29.15250125]
[1753215154595,0.06,199.91,199.9,34.40704825]
[1753215155101,0.06,199.91,199.9,55.404547]
[1753215155897,0.06,199.91,199.9,60.40704825]
[1753215156187,0.06,199.91,199.9,55.404547]
[1753215156622,0.06,199.91,199.9,50.15]
[1753215156794,0.06,199.91,199.9,55.404547]
[1753215156991,0.06,199.91,199.9,50.15]
[1753215157196,0.06,199.91,199.9,55.404547]
[1753215157710,0.06,199.91,199.9,55.15250125]
[1753215158020,0.06,199.91,199.9,60.40704825]
[1753215158186,0.06,199.91,199.9,55.15250125]
[1753215158590,0.06,199.91,199.9,60.40704825]
[1753215158894,0.06,199.91,199.9,46.43743534]
[1753215159120,0.06,199.91,199.9,56.94652934]
[1753215159798,0.06,199.91,199.9,35.32729837]
[1753215160212,0.06,199.91,199.9,30.07275137]
[1753215160428,0.06,199.91,199.9,35.32729837]
[1753215160610,0.06,199.91,199.9,40.58184537]
[1753215160818,0.06,199.91,199.9,35.32729837]
[1753215160997,0.06,199.91,199.9,40.58184537]
[1753215161899,0.06,199.91,199.9,57.36652934]
[1753215162711,0.06,199.91,199.9,46.85743534]
[1753215163026,0.06,199.91,199.9,52.11198234]
[1753215163601,0.06,199.91,199.9,46.85743534]
[1753215163802,0.06,199.91,199.9,52.11198234]
[1753215164629,0.06,199.91,199.9,28.25198234]
[1753215164827,0.06,199.91,199.9,6.21275137]
[1753215164999,0.06,199.91,199.9,37.46729837]
[1753215165199,0.06,199.91,199.9,35.22729837]
[1753215166065,0.06,199.91,199.9,29.97275137]
[1753215166226,0.06,199.91,199.9,35.22729837]
[1753215167008,0.06,199.91,199.9,29.97275137]
[1753215167344,0.06,199.91,199.9,35.22729837]
[1753215167707,0.06,199.91,199.9,29.26275137]
[1753215167940,0.06,199.91,199.9,34.45729837]
[1753215168135,0.06,199.91,199.9,29.20275137]
[1753215168313,0.06,199.91,199.9,24.20025012]
[1753215168642,0.73,199.91,199.84,5.954547]
[1753215168807,0.73,199.91,199.85,0.73]
[1753215169139,5.984547,199.91,199.86,49.68]
[1753215169525,0.67,199.9,199.86,49.68]
[1753215169938,5.314547,199.91,199.85,5.984547]
[1753215169939,5.924547,199.89,199.85,0.03]
[1753215170240,5.254547,199.88,199.86,23.66]
[1753215170750,0.67,199.87,199.86,23.66]
[1753215171216,0.67,199.87,199.85,0.03]
[1753215171547,5.254547,199.87,199.85,0.03]
[1753215171739,5.254547,199.87,199.86,23.64]
[1753215172417,5.924547,199.87,199.86,23.64]
[1753215173227,0.14216157,199.86,199.85,0.03]
[1753215173421,6.06670857,199.86,199.85,0.03]
[1753215174551,11.07021102,199.86,199.85,0.03]
[1753215177637,5.81566402,199.86,199.85,0.03]
[1753215177845,11.07021102,199.86,199.85,0.03]
[1753215178551,27.85489499,199.86,199.85,0.03]
[1753215179136,30.41581644,199.86,199.85,0.03]
[1753215182840,0.14216157,199.84,199.83,0.03]
[1753215183041,5.39670857,199.84,199.83,0.03]
[1753215183259,6.06670857,199.84,199.83,0.03]
[1753215183654,5.924547,199.84,199.83,0.03]
[1753215183837,22.70923097,199.84,199.83,0.03]
[1753215184037,22.85139254,199.84,199.83,0.03]
[1753215184935,27.85539574,199.84,199.83,0.03]
[1753215187975,16.78468397,199.86,199.83,0.03]
[1753215188271,5.924547,199.84,199.83,0.03]
[1753215188444,6.06670857,199.84,199.83,0.03]
[1753215188871,11.07071177,199.84,199.83,0.03]
[1753215189378,16.78468397,199.86,199.83,5.984547]
[1753215189379,0.06,199.86,199.83,5.984547]
[1753215189538,0.06,199.86,199.85,31.254547]
[1753215189738,0.06,199.93,199.85,31.254547]
[1753215189961,0.06,199.93,199.9,10.509094]
[1753215190158,0.06,199.93,199.9,11.70934412]
[1753215191768,0.06,199.93,199.9,16.71184537]
[1753215193180,0.06,199.93,199.9,21.71184537]
[1753215193342,0.06,199.93,199.9,11.45729837]
[1753215193543,0.06,199.93,199.9,5.954547]
[1753215193748,0.06,199.93,199.9,5.254547]
[1753215195951,0.06,199.93,199.9,5.954547]
[1753215198584,0.06,199.93,199.89,49.18]
[1753215198800,0.06,199.93,199.9,5.254547]
[1753215199269,0.06,199.93,199.9,5.944547]
[1753215201564,0.06,199.93,199.9,10.94704825]
[1753215201790,0.06,199.93,199.9,5.944547]
[1753215202094,0.06,199.93,199.9,10.94704825]
[1753215204986,0.06,199.93,199.9,5.69250125]
[1753215205188,0.06,199.93,199.9,10.94704825]
[1753215206387,0.06,199.93,199.9,5.69250125]
[1753215206586,0.06,199.93,199.9,10.94704825]
[1753215206769,0.06,199.93,199.9,23.04]
[1753215206970,0.06,199.93,199.9,28.294547]
[1753215207271,5.994547,199.91,199.85,5.254547]
[1753215207475,0.82216157,199.9,199.86,23.02]
[1753215207857,0.14216157,199.9,199.86,23.02]
[1753215208064,0.68,199.89,199.85,26.0]
[1753215208363,0.68,199.88,199.83,31.284547]
[1753215208592,0.14216157,199.87,199.83,0.03]
[1753215208776,0.68,199.86,199.84,23.02]
[1753215208977,5.934547,199.85,199.83,0.03]
[1753215209383,0.68,199.84,199.83,0.03]
[1753215209689,6.07670857,199.84,199.83,0.03]
[1753215209860,0.82216157,199.84,199.83,0.03]
[1753215210489,5.82616477,199.84,199.83,0.03]
[1753215212205,11.08071177,199.84,199.83,0.03]
[1753215212764,27.86539574,199.84,199.83,0.03]
[1753215213172,22.61084874,199.84,199.83,0.03]
[1753215213388,27.86539574,199.84,199.83,0.03]
[1753215214595,22.61084874,199.84,199.83,0.03]
[1753215214788,27.86539574,199.84,199.83,0.03]
[1753215217813,33.32094858,199.84,199.83,0.03]
[1753215218985,0.14216157,199.83,199.82,0.03]
[1753215219214,6.07670857,199.83,199.82,0.03]
[1753215219721,11.08096218,199.83,199.82,0.03]
[1753215227390,27.86564615,199.83,199.82,1e-08]
[1753215227595,27.86564615,199.83,199.75,0.03]
[1753215227915,22.18139254,199.76,199.75,0.03]
[1753215228488,22.88139254,199.76,199.75,0.03]
[1753215228697,25.33947455,199.76,199.75,0.03]
[1753215229391,30.34548175,199.76,199.75,0.03]
[1753215229706,0.14216157,199.75,199.69,0.2]
[1753215229905,5.39670857,199.71,199.69,0.2]
[1753215230305,22.88139254,199.71,199.69,0.2]
[1753215231135,17.62684554,199.71,199.69,0.2]
[1753215231298,27.88865306,199.71,199.69,0.2]
[1753215233012,22.63410606,199.71,199.69,0.2]
[1753215233206,27.88865306,199.71,199.69,0.2]
[1753215233706,21.93410606,199.71,199.69,0.2]
[1753215234105,27.18865306,199.71,199.69,0.2]
[1753215234513,22.63410606,199.71,199.69,0.2]
[1753215234697,27.88865306,199.71,199.69,0.2]
[1753215236026,22.63410606,199.71,199.69,0.2]
[1753215236326,22.94,199.73,199.7,0.69000001]
[1753215236327,10.26136155,199.73,199.7,0.69000001]
[1753215236502,0.14216157,199.72,199.7,0.69000001]
[1753215236828,0.14216157,199.72,199.71,0.69]
[1753215237328,10.26108397,199.74,199.71,0.69]
[1753215237530,0.14216157,199.73,199.71,0.69]
[1753215237830,16.78468397,199.8,199.72,5.944547]
[1753215238028,16.78468397,199.8,199.76,5.254547]
[1753215238334,10.25930151,199.81,199.77,0.69]
[1753215238502,16.92684554,199.8,199.77,0.69]
[1753215238703,16.78468397,199.8,199.77,0.69]
[1753215238917,5.00525551,199.79,199.77,0.69]
[1753215239114,5.00525551,199.79,199.74,5.944547]
[1753215239307,5.00525551,199.79,199.75,5.944547]
[1753215239512,5.254547,199.81,199.76,5.944547]
[1753215239513,5.00475451,199.81,199.76,5.944547]
[1753215239730,5.00475451,199.81,199.77,0.69]
[1753215239900,5.00475451,199.81,199.78,0.69]
[1753215240327,0.06,199.83,199.8,5.254547]
[1753215240528,0.06,199.83,199.81,0.69]